bitfinex/quotes_BTCUSD_20250119
["timestamp","ask_amount","ask_price","bid_price","bid_amount"]
[1737328894996,0.00090195,101250.0,101180.0,0.1]
[1737328895193,0.00090195,101250.0,101240.0,0.098775]
[1737328895420,0.00140036,101250.0,101240.0,0.29827254]
[1737328895620,0.00140036,101250.0,101240.0,0.19949754]
[1737328896139,0.00140036,101250.0,101240.0,0.29827254]
[1737328897574,0.00131098,101250.0,101240.0,0.44827254]
[1737328898016,0.00131098,101250.0,101240.0,0.59827254]
[1737328898162,0.00131098,101250.0,101240.0,0.54414288]
[1737328898614,0.00131098,101250.0,101240.0,0.39414288]
[1737328898982,0.00131098,101250.0,101240.0,0.24414288]
[1737328899197,0.00131098,101250.0,101240.0,0.14536788]
[1737328899992,0.00131098,101250.0,101240.0,0.54414288]
[1737328900191,0.00131098,101250.0,101240.0,0.39414288]
[1737328900563,0.00131098,101250.0,101240.0,0.5538759]
[1737328901122,0.00131098,101250.0,101240.0,0.4038759]
[1737328901515,0.29384762,101280.0,101250.0,0.1]
[1737328901726,0.39510547,101280.0,101260.0,0.09949754]
[1737328901897,0.098755,101260.0,101230.0,0.198779]
[1737328902091,0.29636347,101280.0,101240.0,0.19949754]
[1737328902294,0.29636347,101280.0,101240.0,0.49579954]
[1737328902295,0.098747,101270.0,101240.0,0.49579954]
[1737328902601,0.09889047,101280.0,101250.0,0.296292]
[1737328902889,0.00014947,101280.0,101260.0,0.39576154]
[1737328903225,0.00014947,101280.0,101270.0,0.098745]
[1737328903427,0.00014947,101280.0,101270.0,0.44824254]
[1737328903627,0.00014947,101280.0,101270.0,0.77641959]
[1737328903844,0.000426,101300.0,101290.0,0.348726]
[1737328904083,0.000426,101300.0,101290.0,0.59822354]
[1737328904740,0.000426,101300.0,101290.0,0.77640059]
[1737328905257,1e-06,101300.0,101290.0,0.89940059]
[1737328905614,1e-06,101300.0,101290.0,0.79940059]
[1737328905799,1e-06,101300.0,101290.0,0.47822354]
[1737328906202,1e-06,101300.0,101290.0,0.37949754]
[1737328906421,1e-06,101300.0,101290.0,0.47822354]
[1737328906641,1e-06,101300.0,101290.0,0.32822354]
[1737328907040,1e-06,101300.0,101290.0,0.12949754]
[1737328907254,0.1030859,101300.0,101290.0,0.03]
[1737328907459,0.0043699,101300.0,101290.0,0.03]
[1737328907665,0.00293495,101300.0,101290.0,0.32822354]
[1737328908060,0.00293495,101300.0,101290.0,0.22949754]
[1737328908288,0.00293495,101300.0,101290.0,0.12788191]
[1737328908494,0.10165095,101300.0,101270.0,0.1]
[1737328908675,0.49654895,101300.0,101280.0,0.09949754]
[1737328908882,0.39782595,101300.0,101280.0,0.09949754]
[1737328909076,0.49655095,101300.0,101270.0,0.1]
[1737328909325,0.15213249,101300.0,101250.0,0.1]
[1737328909442,0.372696,101290.0,101260.0,0.29840001]
[1737328909650,0.372696,101290.0,101270.0,0.198739]
[1737328909651,0.0765,101290.0,101270.0,0.198739]
[1737328909851,1e-06,101300.0,101290.0,0.1]
[1737328910053,1e-06,101300.0,101290.0,0.29822354]
[1737328910298,1e-06,101300.0,101290.0,0.34949754]
[1737328910497,1e-06,101300.0,101290.0,0.19949754]
[1737328910710,1e-06,101300.0,101290.0,0.29822354]
[1737328911071,1e-06,101300.0,101270.0,0.1]
[1737328911282,1e-06,101300.0,101270.0,0.09949754]
[1737328911283,0.098726,101290.0,101270.0,0.09949754]
[1737328911492,0.198701,101290.0,101260.0,0.00014947]
[1737328911697,0.098745,101270.0,101260.0,0.09964701]
[1737328911892,0.098745,101270.0,101260.0,0.00014947]
[1737328912093,0.245427,101260.0,101220.0,0.1]
[1737328912314,0.098804,101210.0,101180.0,0.30668816]
[1737328912560,0.197611,101210.0,101190.0,0.28679728]
[1737328912709,0.395231,101210.0,101190.0,0.1090914]
[1737328913053,0.31274932,101200.0,101190.0,0.00459386]
[1737328913196,0.4110118,101200.0,101190.0,0.00459386]
[1737328913391,0.098863,101150.0,101140.0,0.31252385]
[1737328913592,0.00123586,101150.0,101140.0,0.21252385]
[1737328913833,0.1291,101160.0,101150.0,0.098863]
[1737328914099,0.1291,101160.0,101150.0,0.33906528]
[1737328914263,0.1252,101190.0,101160.0,0.33955674]
[1737328914418,0.224024,101190.0,101170.0,0.09949754]
[1737328914615,0.1252,101190.0,101170.0,0.09949754]
[1737328914828,0.12534895,101190.0,101180.0,0.198833]
[1737328915060,0.00014895,101190.0,101180.0,0.43903528]
[1737328915470,0.00014895,101190.0,101180.0,0.58903528]
[1737328916290,0.00014895,101190.0,101180.0,0.19949754]
[1737328916496,0.00014895,101190.0,101180.0,0.43903528]
[1737328916834,0.0035459,101190.0,101180.0,0.43903528]
[1737328917016,0.00014895,101190.0,101180.0,0.43903528]
[1737328917419,0.00014895,101190.0,101180.0,0.59630431]
[1737328917661,0.00014895,101190.0,101180.0,0.72903733]
[1737328918008,0.00014895,101190.0,101180.0,0.50603733]
[1737328918214,0.00014895,101190.0,101180.0,0.45559957]
[1737328918409,0.00014895,101190.0,101180.0,0.59630431]
[1737328918871,0.00014895,101190.0,101180.0,0.44630431]
[1737328919474,0.00014895,101190.0,101180.0,0.59630431]
[1737328919835,0.0843,101300.0,101210.0,0.25]
[1737328920045,0.29636431,101280.0,101250.0,0.1]
[1737328920246,0.197496,101270.0,101230.0,0.33948874]
[1737328920479,0.0478,101260.0,101240.0,0.09949754]
[1737328920639,0.0478,101260.0,101240.0,0.39581354]
[1737328920835,0.0478,101260.0,101250.0,0.098765]
[1737328921215,0.0478,101260.0,101230.0,0.54431077]
[1737328921531,0.146556,101260.0,101240.0,0.09949754]
[1737328921736,0.146562,101260.0,101230.0,0.10676657]
[1737328921935,0.277232,101250.0,101230.0,0.00726903]
[1737328922091,0.197581,101230.0,101200.0,0.1]
[1737328922290,0.197581,101230.0,101210.0,0.09949754]
[1737328922291,0.27696505,101230.0,101210.0,0.09949754]
[1737328922477,0.446338,101240.0,101210.0,0.19829954]
[1737328922698,0.65319626,101240.0,101210.0,0.09949754]
[1737328922897,0.0478,101260.0,101250.0,0.33946974]
[1737328923180,0.0753,101280.0,101270.0,0.33944974]
[1737328923383,0.057924,101300.0,101280.0,0.1]
[1737328923606,0.05807342,101300.0,101290.0,0.19822354]
[1737328923951,0.00857342,101300.0,101290.0,0.19949754]
[1737328924176,0.00857342,101300.0,101270.0,0.396213]
[1737328924357,0.00857342,101300.0,101290.0,0.29822354]
[1737328924565,0.00857342,101300.0,101290.0,0.09949754]
[1737328924709,0.00857342,101300.0,101290.0,0.43892828]
[1737328924908,0.00857342,101300.0,101290.0,0.71192828]
[1737328925111,0.00857342,101300.0,101290.0,0.44822354]
[1737328925321,0.00857342,101300.0,101290.0,0.58892828]
[1737328925553,0.00857342,101300.0,101290.0,0.61192828]
[1737328925776,0.00096174,101310.0,101300.0,0.36242074]
[1737328925907,0.00096174,101310.0,101300.0,0.79009533]
[1737328926101,0.00096174,101310.0,101300.0,0.69009533]
[1737328926321,0.00096174,101310.0,101300.0,0.79009533]
[1737328927139,0.00096174,101310.0,101300.0,0.76709533]
[1737328927347,0.00331107,101310.0,101300.0,0.76709533]
[1737328927729,0.00096174,101310.0,101300.0,0.76709533]
[1737328927925,0.00331071,101310.0,101300.0,0.79196795]
[1737328928380,0.00096174,101310.0,101300.0,0.81496795]
[1737328928763,0.00096174,101310.0,101300.0,0.67426321]
[1737328928968,0.00331071,101310.0,101300.0,0.79196795]
[1737328929302,0.00096174,101310.0,101300.0,0.84196795]
[1737328929498,0.00096174,101310.0,101300.0,0.94196795]
[1737328929676,0.00090174,101320.0,101310.0,0.48941074]
[1737328929880,0.0004249,101360.0,101350.0,0.48937174]
[1737328930114,0.00092251,101360.0,101350.0,0.6137419]
[1737328930288,0.00092251,101360.0,101350.0,0.62347492]
[1737328930489,0.00092251,101360.0,101350.0,0.52700217]
[1737328930689,0.00092251,101360.0,101350.0,0.51726915]
[1737328931255,0.00092251,101360.0,101350.0,0.41860215]
[1737328931470,0.00092251,101360.0,101350.0,0.51726915]
[1737328931675,0.00092251,101360.0,101350.0,0.51697365]
[1737328932120,0.173,101390.0,101350.0,0.46592215]
[1737328932329,0.37041924,101390.0,101360.0,0.09949754]
[1737328932497,0.098642,101380.0,101350.0,0.33886828]
[1737328932701,0.00014924,101390.0,101360.0,0.09949754]
[1737328932942,0.00014924,101390.0,101380.0,0.098638]
[1737328933152,0.00014924,101390.0,101370.0,0.43662474]
[1737328933331,0.00014924,101390.0,101380.0,0.09949754]
[1737328933730,0.63015742,101410.0,101380.0,0.09949754]
[1737328933939,0.295862,101400.0,101380.0,0.09949754]
[1737328934103,0.15,101400.0,101380.0,0.09949754]
[1737328934301,0.15,101400.0,101380.0,0.19813454]
[1737328934502,0.06547929,101410.0,101390.0,0.098627]
[1737328934699,0.06547929,101410.0,101400.0,0.19811654]
[1737328934926,0.06547929,101410.0,101400.0,0.36722115]
[1737328935205,0.06547929,101410.0,101400.0,0.33882128]
[1737328935404,0.06547929,101410.0,101400.0,0.24020228]
[1737328935649,0.06547929,101410.0,101400.0,0.36722115]
[1737328935827,0.0020811,101420.0,101410.0,0.14070474]
[1737328936025,0.0020811,101420.0,101410.0,0.09949754]
[1737328936664,0.2812145,101420.0,101390.0,0.23933274]
[1737328936830,0.445838,101410.0,101390.0,0.09949754]
[1737328937026,0.098621,101400.0,101370.0,0.14070474]
[1737328937281,0.098621,101400.0,101380.0,0.09949754]
[1737328937427,0.098629,101390.0,101370.0,0.00014924]
[1737328937627,0.023,101390.0,101370.0,0.00014924]
[1737328937831,0.271638,101380.0,101370.0,0.00014924]
[1737328938679,0.121638,101380.0,101370.0,0.00014924]
[1737328939038,0.121638,101380.0,101370.0,0.00114924]
[1737328939459,0.71990239,101390.0,101370.0,0.00114924]
[1737328939688,0.121638,101380.0,101370.0,0.00114924]
[1737328940458,0.27623813,101380.0,101370.0,0.00114924]
[1737328940658,0.52573567,101380.0,101370.0,0.00114924]
[1737328941065,0.296038,101340.0,101310.0,0.36651361]
[1737328941267,0.023,101350.0,101320.0,0.24020228]
[1737328941472,0.296037,101340.0,101310.0,0.53631528]
[1737328941686,0.35662326,101360.0,101320.0,0.09949754]
[1737328941881,0.098669,101350.0,101320.0,0.39556854]
[1737328942268,0.296007,101350.0,101320.0,0.20435851]
[1737328942471,0.00014894,101350.0,101330.0,0.098685]
[1737328942737,0.00014894,101350.0,101330.0,0.39555654]
[1737328942923,0.00014894,101350.0,101340.0,0.09949754]
[1737328943135,0.00014894,101350.0,101340.0,0.22657441]
[1737328943509,5.961e-05,101350.0,101340.0,0.6954562]
[1737328943910,5.961e-05,101350.0,101340.0,0.51727915]
[1737328944118,5.961e-05,101350.0,101340.0,0.52345112]
[1737328944337,5.961e-05,101350.0,101340.0,0.49505125]
[1737328944586,5.961e-05,101350.0,101340.0,0.52345112]
[1737328944711,5.961e-05,101350.0,101340.0,0.72462817]
[1737328944908,6.1e-07,101350.0,101340.0,0.98436119]
[1737328945164,0.0809,101410.0,101390.0,0.53520674]
[1737328945368,0.08104913,101410.0,101400.0,0.19811654]
[1737328946426,0.08104913,101410.0,101400.0,0.48882128]
[1737328946627,0.08104913,101410.0,101400.0,0.19811654]
[1737328947229,0.08104913,101410.0,101400.0,0.48882128]
[1737328947230,0.08147263,101410.0,101400.0,0.48882128]
[1737328947427,0.00057263,101410.0,101400.0,0.48882128]
[1737328948270,0.0020811,101420.0,101410.0,0.31910461]
[1737328948441,0.0020811,101420.0,101410.0,0.51721115]
[1737328948658,0.0020811,101420.0,101410.0,0.48881128]
[1737328949060,0.0020811,101420.0,101410.0,0.24949754]
[1737328949237,0.0020811,101420.0,101410.0,0.09949754]
[1737328949442,0.0020811,101420.0,101410.0,0.36721115]
[1737328949656,0.0020811,101420.0,101410.0,0.51721115]
[1737328950092,0.0020811,101420.0,101410.0,0.52988264]
[1737328950653,0.0020811,101420.0,101410.0,0.50148277]
[1737328950857,0.08480291,101470.0,101430.0,0.14070474]
[1737328951112,0.072177,101470.0,101460.0,0.098561]
[1737328951253,0.00057687,101470.0,101440.0,0.33877528]
[1737328951458,0.00057687,101470.0,101440.0,0.43735228]
[1737328951654,0.197146,101450.0,101410.0,0.23827436]
[1737328951865,0.27090682,101450.0,101420.0,0.197197]
[1737328952068,0.1296,101460.0,101440.0,0.098579]
[1737328952267,0.1296,101460.0,101440.0,0.58736128]
[1737328952468,0.0797,101460.0,101440.0,0.63450928]
[1737328952670,0.0797,101460.0,101450.0,0.23927474]
[1737328952867,0.0797,101460.0,101450.0,0.33877228]
[1737328953238,0.00057687,101470.0,101460.0,0.23926574]
[1737328953369,0.00057687,101470.0,101460.0,0.33876328]
[1737328953573,0.00057687,101470.0,101460.0,0.36716315]
[1737328953771,0.00057687,101470.0,101460.0,0.56837933]
[1737328954049,0.00057687,101470.0,101460.0,0.6953402]
[1737328954223,0.00057687,101470.0,101460.0,0.7183402]
[1737328955430,0.00057687,101470.0,101460.0,0.73133372]
[1737328955812,0.00057687,101470.0,101460.0,0.88133372]
[1737328956181,0.00057687,101470.0,101460.0,1.45955472]
[1737328956298,0.0004285,101500.0,101490.0,0.56763561]
[1737328956502,0.00092522,101500.0,101490.0,0.8453102]
[1737328956745,0.00092522,101500.0,101490.0,0.8683102]
[1737328957697,0.00092522,101500.0,101490.0,0.6953102]
[1737328957966,0.00841722,101500.0,101490.0,0.7183102]
[1737328958721,0.0004246,101510.0,101500.0,0.56762661]
[1737328958918,0.0004237,101520.0,101510.0,0.66761661]
[1737328959122,0.0004274,101530.0,101520.0,0.69060661]
[1737328959341,0.00057638,101530.0,101520.0,0.69983717]
[1737328959752,0.40181192,101580.0,101550.0,0.33764174]
[1737328959978,0.00369369,101570.0,101560.0,0.23978888]
[1737328960383,0.10214769,101570.0,101550.0,0.14029134]
[1737328960562,0.29905769,101570.0,101550.0,0.24949754]
[1737328960755,0.098463,101560.0,101550.0,0.38978888]
[1737328960978,0.20075167,101560.0,101530.0,0.43575034]
[1737328961163,0.098483,101540.0,101530.0,0.14029134]
[1737328961532,0.098483,101540.0,101490.0,0.16276131]
[1737328961533,0.098509,101520.0,101490.0,0.12692787]
[1737328961652,0.394023,101520.0,101500.0,0.09949754]
[1737328961854,0.492531,101520.0,101500.0,0.09949754]
[1737328962054,0.29935409,101510.0,101480.0,0.34002084]
[1737328962250,0.00380809,101510.0,101490.0,0.33831488]
[1737328962493,0.00380809,101510.0,101500.0,0.23881334]
[1737328962710,0.20084409,101510.0,101480.0,0.3822869]
[1737328962911,0.197017,101520.0,101490.0,0.23978888]
[1737328963130,0.00377443,101500.0,101490.0,0.71904744]
[1737328963332,0.376992,101530.0,101510.0,0.46420521]
[1737328963333,0.0815,101530.0,101510.0,0.46420521]
[1737328963553,0.197006,101520.0,101500.0,0.15]
[1737328963832,0.098512,101510.0,101500.0,0.14029134]
[1737328963979,0.56635594,101520.0,101500.0,0.14029134]
[1737328963980,0.394026,101520.0,101500.0,0.14029134]
[1737328964184,0.098512,101510.0,101500.0,0.14029134]
[1737328964780,0.31567913,101540.0,101500.0,0.23978888]
[1737328964971,0.31567913,101540.0,101510.0,0.14029134]
[1737328964972,0.295483,101530.0,101510.0,0.14029134]
[1737328965169,0.295483,101530.0,101500.0,0.53533488]
[1737328965394,0.49348854,101530.0,101510.0,0.14029134]
[1737328965599,0.098502,101520.0,101500.0,0.23978888]
[1737328965742,0.56408813,101530.0,101500.0,0.33830788]
[1737328965944,0.56408813,101530.0,101500.0,0.53534888]
[1737328965945,0.098501,101530.0,101500.0,0.53534888]
[1737328966147,0.098501,101530.0,101510.0,0.098512]
[1737328966346,0.56407913,101530.0,101500.0,0.53534988]
[1737328966561,0.370036,101510.0,101490.0,0.14029134]
[1737328966797,0.44681641,101500.0,101480.0,0.00049672]
[1737328967005,0.121531,101490.0,101480.0,0.00049672]
[1737328967373,0.023,101490.0,101480.0,0.14078806]
[1737328967517,0.023,101490.0,101480.0,0.23932906]
[1737328967928,0.00123159,101500.0,101480.0,0.14078806]
[1737328968129,0.098531,101490.0,101480.0,0.14078806]
[1737328968335,0.271531,101490.0,101480.0,0.00049672]
[1737328968530,0.37102854,101490.0,101480.0,0.00049672]
[1737328968754,0.248551,101470.0,101460.0,0.00616325]
[1737328969114,0.15,101470.0,101460.0,0.14645459]
[1737328969326,0.271551,101470.0,101460.0,0.00616325]
[1737328969531,0.173,101470.0,101460.0,0.24501559]
[1737328969732,0.00049601,101490.0,101480.0,0.098541]
[1737328969936,0.00049601,101490.0,101480.0,0.23883234]
[1737328970137,0.00049601,101490.0,101480.0,0.33832988]
[1737328971034,0.02349601,101490.0,101480.0,0.23883234]
[1737328971358,0.00049601,101490.0,101470.0,0.30549369]
[1737328971545,0.56982423,101490.0,101480.0,0.00616325]
[1737328971748,0.56859255,101490.0,101480.0,0.00616325]
[1737328971959,0.72428484,101490.0,101480.0,0.00616325]
[1737328972505,0.56902015,101490.0,101480.0,0.00616325]
[1737328972702,0.56902015,101490.0,101440.0,0.14734373]
[1737328972703,0.15,101460.0,101440.0,0.14734373]
[1737328972919,0.09857,101450.0,101440.0,0.00705239]
[1737328973150,0.12157,101450.0,101440.0,0.00705239]
[1737328973389,0.4932998,101450.0,101440.0,0.00705239]
[1737328973562,0.49206767,101450.0,101440.0,0.00705239]
[1737328973804,0.57573223,101450.0,101440.0,0.00705239]
[1737328973997,0.07160013,101480.0,101450.0,0.14029134]
[1737328974222,0.07160013,101480.0,101440.0,0.14132946]
[1737328974223,0.17109767,101480.0,101440.0,0.14132946]
[1737328974462,0.098564,101460.0,101440.0,0.00103812]
[1737328974675,0.17109767,101470.0,101450.0,0.09857]
[1737328974849,0.0989656,101490.0,101450.0,0.23978888]
[1737328975052,0.27128908,101490.0,101460.0,0.23884634]
[1737328975263,0.46835408,101490.0,101460.0,0.43595534]
[1737328975412,0.27128908,101490.0,101470.0,0.09855]
[1737328975619,0.19409767,101480.0,101460.0,0.23885034]
[1737328975823,0.1953296,101480.0,101460.0,0.14029134]
[1737328976241,0.1953296,101480.0,101450.0,0.41028531]
[1737328976242,0.2938716,101480.0,101450.0,0.21315631]
[1737328976450,0.36849006,101470.0,101450.0,0.01602831]
[1737328976660,0.19439318,101460.0,101450.0,0.16213087]
[1737328976870,0.19316113,101460.0,101450.0,0.02183953]
[1737328977072,0.34268113,101460.0,101450.0,0.02183953]
[1737328977275,0.44217867,101460.0,101450.0,0.02183953]
[1737328977480,0.37057854,101460.0,101450.0,0.02183953]
[1737328977817,0.37057854,101460.0,101450.0,0.00616473]
[1737328978016,0.37057854,101460.0,101440.0,0.00103812]
[1737328978017,0.38407866,101450.0,101440.0,0.00103812]
[1737328978242,0.63884089,101450.0,101440.0,0.00103812]
[1737328978420,0.62913223,101450.0,101440.0,0.00103812]
[1737328978587,0.54546767,101450.0,101440.0,0.00103812]
[1737328978799,0.47386754,101450.0,101440.0,0.00103812]
[1737328979186,0.49686754,101450.0,101440.0,0.00103812]
[1737328979387,0.1258,101450.0,101440.0,0.00103812]
[1737328979591,0.098553,101470.0,101450.0,0.09857]
[1737328979778,0.178642,101480.0,101460.0,0.43596734]
[1737328979978,0.0004276,101490.0,101480.0,0.098541]
[1737328980214,0.0004276,101490.0,101480.0,0.48832988]
[1737328980422,0.0004276,101490.0,101480.0,0.51672975]
[1737328980628,0.0004276,101490.0,101480.0,0.48832988]
[1737328980829,0.0004276,101490.0,101480.0,0.49564193]
[1737328981195,0.00092361,101490.0,101480.0,0.49564193]
[1737328981433,0.00092361,101490.0,101480.0,0.39614439]
[1737328981631,0.00092361,101490.0,101480.0,0.50550198]
[1737328981872,0.00092361,101490.0,101480.0,0.83916654]
[1737328982207,0.06802374,101540.0,101520.0,0.14029134]
[1737328982385,0.16752128,101540.0,101520.0,0.23879034]
[1737328982596,0.0463,101550.0,101530.0,0.23878434]
[1737328982789,0.00010553,101560.0,101550.0,0.38876434]
[1737328982988,0.00010553,101560.0,101550.0,0.73826188]
[1737328983227,0.01102213,101580.0,101570.0,0.23874534]
[1737328983402,0.01102213,101580.0,101570.0,0.74350757]
[1737328983606,0.01102213,101580.0,101570.0,0.89350757]
[1737328983607,0.01117106,101580.0,101570.0,0.89350757]
[1737328983744,0.0014422,101600.0,101590.0,0.33872534]
[1737328983938,0.00193843,101600.0,101590.0,0.59348757]
[1737328984187,0.00193843,101600.0,101590.0,0.75334762]
[1737328984528,0.00193843,101600.0,101590.0,0.90334762]
[1737328984885,0.00193843,101600.0,101590.0,0.92241218]
[1737328985090,0.0004272,101610.0,101600.0,0.48871634]
[1737328985297,0.0004272,101610.0,101600.0,0.7479469]
[1737328985461,0.0004272,101610.0,101600.0,0.58821388]
[1737328985690,0.0004272,101610.0,101600.0,0.60389817]
[1737328985897,0.0004272,101610.0,101600.0,0.50389817]
[1737328986093,0.0003288,101610.0,101600.0,0.50389817]
[1737328986401,0.0003288,101610.0,101600.0,0.51121022]
[1737328986625,0.0003288,101610.0,101600.0,0.12142134]
[1737328986880,0.0003288,101610.0,101600.0,0.25588844]
[1737328987078,0.295197,101630.0,101600.0,0.55114344]
[1737328987280,0.09855578,101620.0,101600.0,0.1155891]
[1737328987480,0.19796412,101620.0,101600.0,0.0171721]
[1737328987686,0.098415,101610.0,101600.0,0.00731205]
[1737328987882,0.098415,101610.0,101580.0,0.50206605]
[1737328988111,0.09966028,101600.0,101580.0,0.00986005]
[1737328988351,0.082,101610.0,101590.0,0.14029134]
[1737328988557,0.04995958,101620.0,101600.0,0.295273]
[1737328988704,0.09846458,101620.0,101600.0,0.23871034]
[1737328988913,0.09846458,101620.0,101590.0,0.59164654]
[1737328989113,0.29648218,101610.0,101590.0,0.14029134]
[1737328989344,0.098416,101610.0,101590.0,0.43558834]
[1737328989564,0.098416,101610.0,101590.0,0.14029134]
[1737328989565,0.295247,101610.0,101590.0,0.14029134]
[1737328989773,0.121425,101600.0,101590.0,0.14029134]
[1737328989910,0.098434,101590.0,101580.0,0.00986005]
[1737328990111,0.19791554,101610.0,101590.0,0.098433]
[1737328990311,0.19688458,101620.0,101600.0,0.23871534]
[1737328990312,5.958e-05,101620.0,101600.0,0.23871534]
[1737328990700,0.098422,101610.0,101590.0,0.14029134]
[1737328990906,0.098422,101610.0,101580.0,0.14644817]
[1737328990907,0.0996633,101600.0,101580.0,0.14644817]
[1737328991121,0.2210803,101600.0,101580.0,0.00615683]
[1737328991335,0.3195103,101600.0,101580.0,0.14644817]
[1737328991537,0.098434,101590.0,101580.0,0.00615683]
[1737328991655,0.023,101600.0,101580.0,0.44177717]
[1737328991860,0.10072804,101600.0,101580.0,0.14644817]
[1737328992067,0.10072804,101600.0,101580.0,0.00615683]
[1737328992068,0.39602204,101600.0,101580.0,0.00615683]
[1737328992272,0.19688258,101620.0,101590.0,0.295299]
[1737328992525,0.1981019,101620.0,101600.0,0.14029134]
[1737328992685,0.19807022,101610.0,101580.0,0.54125471]
[1737328993055,0.121434,101590.0,101580.0,0.00615683]
[1737328993427,0.023,101590.0,101580.0,0.00615683]
[1737328993633,0.0468,101610.0,101590.0,0.098433]
[1737328993836,0.14629754,101610.0,101590.0,0.14029134]
[1737328994042,0.29528058,101620.0,101600.0,0.14029134]
[1737328994195,5.958e-05,101620.0,101610.0,0.23870634]
[1737328994867,0.56944148,101640.0,101610.0,0.23870634]
[1737328995022,0.56944148,101640.0,101610.0,0.14029134]
[1737328995023,0.098405,101620.0,101610.0,0.14029134]
[1737328995207,0.0988321,101620.0,101610.0,0.14029134]
[1737328995407,0.0004271,101620.0,101610.0,0.14029134]
[1737328995628,0.0004271,101620.0,101610.0,0.23870634]
[1737328995856,0.0004271,101620.0,101610.0,0.38870634]
[1737328996055,0.0004271,101620.0,101610.0,0.48820388]
[1737328996452,0.0004271,101620.0,101610.0,0.38870634]
[1737328996655,0.0004271,101620.0,101610.0,0.29029134]
[1737328997206,0.0004271,101620.0,101610.0,0.38870634]
[1737328997631,0.0004271,101620.0,101610.0,0.48820388]
[1737328998183,0.0004271,101620.0,101610.0,0.38870634]
[1737328998402,0.0004271,101620.0,101610.0,0.29029134]
[1737328998604,0.22147324,101620.0,101600.0,0.14029134]
[1737328998831,0.31290711,101610.0,101600.0,0.00014878]
[1737328998985,0.41240465,101610.0,101600.0,0.00014878]
[1737328999685,0.45890465,101610.0,101600.0,0.00014878]
[1737329000736,0.45890465,101610.0,101600.0,0.10014878]
[1737329000996,0.61861331,101610.0,101600.0,0.10014878]
[1737329001194,0.492191,101590.0,101570.0,0.14029134]
[1737329001381,0.09967459,101580.0,101570.0,0.00049623]
[1737329001931,0.22217213,101580.0,101570.0,0.00049623]
[1737329002141,0.2306502,101580.0,101570.0,0.00049623]
[1737329002451,0.48014774,101580.0,101570.0,0.00049623]
[1737329002653,0.098491,101540.0,101510.0,0.48996334]
[1737329002860,0.0012312,101530.0,101510.0,0.39160127]
[1737329003056,0.10072874,101530.0,101510.0,1.02443761]
[1737329003258,0.295439,101550.0,101520.0,0.43579134]
[1737329003456,0.39493654,101550.0,101520.0,0.43579134]
[1737329003703,0.29646654,101540.0,101520.0,0.14029134]
[1737329003906,0.098493,101530.0,101510.0,0.14044027]
[1737329004049,0.00123134,101520.0,101510.0,0.00014893]
[1737329004251,0.41799354,101530.0,101510.0,0.14044027]
[1737329004519,0.61499254,101530.0,101510.0,0.14044027]
[1737329004743,0.09973334,101520.0,101510.0,0.00014893]
[1737329004866,0.41799254,101530.0,101510.0,0.14044027]
[1737329005065,0.22099454,101530.0,101510.0,0.14044027]
[1737329005291,0.098502,101520.0,101510.0,0.14044027]
[1737329005492,0.61498154,101530.0,101510.0,0.14044027]
[1737329005790,0.61498154,101530.0,101510.0,0.00014893]
[1737329005791,0.098502,101520.0,101510.0,0.00014893]
[1737329005962,0.22223092,101520.0,101510.0,0.00014893]
[1737329006119,0.22099954,101520.0,101510.0,0.00014893]
[1737329006318,0.2307082,101520.0,101510.0,0.00014893]
[1737329006524,0.2307082,101520.0,101500.0,0.00089544]
[1737329006525,0.121512,101510.0,101500.0,0.00089544]
[1737329006740,0.121512,101510.0,101500.0,0.00104442]
[1737329006741,0.37224133,101510.0,101500.0,0.00104442]
[1737329007023,0.3807182,101510.0,101500.0,0.00104442]
[1737329007658,0.023,101470.0,101460.0,0.00985967]
[1737329007831,0.22228063,101470.0,101460.0,0.00985967]
[1737329008199,0.22228063,101470.0,101450.0,0.00924566]
[1737329008200,0.12249754,101470.0,101450.0,0.00924566]
[1737329008390,0.22229078,101460.0,101450.0,0.00924566]
[1737329008616,0.22105854,101460.0,101450.0,0.00924566]
[1737329008946,0.0782,101490.0,101460.0,0.43596834]
[1737329009151,0.09857,101450.0,101440.0,0.11074881]
[1737329009354,0.09857,101450.0,101440.0,0.10088914]
[1737329009355,0.35780814,101450.0,101440.0,0.10088914]
[1737329009568,0.5065762,101450.0,101440.0,0.10088914]
[1737329009954,0.098604,101420.0,101400.0,0.00089544]
[1737329010174,0.1007302,101410.0,101400.0,0.00089544]
[1737329010398,0.1007302,101410.0,101400.0,0.09951444]
[1737329010605,0.11659276,101430.0,101400.0,0.09966351]
[1737329010810,0.11659276,101430.0,101410.0,0.098606]
[1737329010811,0.09949754,101430.0,101410.0,0.098606]
[1737329010982,0.0768,101450.0,101410.0,0.36500688]
[1737329011183,0.17752992,101450.0,101430.0,0.098586]
[1737329011527,0.17752992,101450.0,101430.0,0.295765]
[1737329011671,0.1,101430.0,101400.0,0.06933585]
[1737329011872,0.10073025,101420.0,101400.0,0.00104451]
[1737329012203,0.20073025,101420.0,101400.0,0.00104451]
[1737329012380,0.29933125,101420.0,101400.0,0.00104451]
[1737329012876,0.1,101410.0,101400.0,0.00104451]
[1737329013096,0.29933948,101410.0,101400.0,0.00104451]
[1737329013223,0.40244966,101410.0,101400.0,0.00080201]
[1737329013430,0.14849754,101410.0,101400.0,0.00080201]
[1737329013637,0.1497304,101410.0,101400.0,0.00080201]
[1737329014066,0.049,101440.0,101430.0,0.09859]
[1737329014267,0.0768,101450.0,101430.0,0.197166]
[1737329014492,0.049,101470.0,101450.0,0.295701]
[1737329014703,0.049,101470.0,101450.0,0.09857]
[1737329014704,0.10072969,101470.0,101450.0,0.09857]
[1737329014936,0.29783268,101470.0,101430.0,0.21829134]
[1737329015153,0.10072968,101460.0,101440.0,0.295735]
[1737329015373,0.10072968,101460.0,101450.0,0.09857]
[1737329015577,0.39518154,101460.0,101440.0,0.098573]
[1737329015798,0.39665054,101450.0,101400.0,0.00065294]
[1737329016044,0.197182,101430.0,101400.0,0.36493635]
[1737329016225,0.098609,101410.0,101400.0,0.00080201]
[1737329016447,0.5298152,101410.0,101400.0,0.00080201]
[1737329016657,0.4298152,101410.0,101400.0,0.00080201]
[1737329016884,0.1,101400.0,101370.0,0.00088935]
[1737329017100,0.1,101400.0,101370.0,0.26662482]
[1737329017101,0.39536654,101400.0,101370.0,0.26662482]
[1737329017359,0.295845,101410.0,101380.0,0.26555734]
[1737329017579,0.440019,101420.0,101400.0,0.098618]
[1737329017788,0.73672754,101420.0,101390.0,0.36415634]
[1737329018008,0.53951554,101420.0,101400.0,0.098618]
[1737329018212,0.73672854,101420.0,101390.0,0.46277734]
[1737329018427,0.73672854,101420.0,101400.0,0.098618]
[1737329018428,0.53951554,101420.0,101400.0,0.098618]
[1737329018883,0.09862,101400.0,101380.0,0.445908]
[1737329019125,0.09949754,101400.0,101390.0,0.00089796]